bitfinex/quotes_ETHUSD_20250115
["timestamp","ask_amount","ask_price","bid_price","bid_amount"]
[1736953111131,0.005,3331.0,3330.9,3.24019]
[1736953114035,0.005,3331.0,3330.7,3.00234]
[1736953114239,0.005,3331.0,3330.8,0.238]
[1736953114458,3.14964562,3331.6,3330.8,0.238]
[1736953114661,3.74859729,3331.6,3330.8,0.238]
[1736953115647,3.74859729,3331.6,3330.5,0.58670883]
[1736953115648,0.7599,3331.5,3330.5,0.58670883]
[1736953115848,0.7599,3331.5,3330.6,0.238]
[1736953116077,0.7599,3331.5,3330.7,0.03001998]
[1736953116282,0.7599,3331.5,3330.8,3.00226]
[1736953116643,0.7599,3331.5,3330.6,1.0626]
[1736953117275,0.14808562,3331.6,3330.8,3.5346508]
[1736953117477,0.14808562,3331.6,3331.0,3.0021]
[1736953117663,0.14808562,3331.6,3331.3,3.00174]
[1736953117863,0.14808562,3331.6,3331.0,3.00202]
[1736953118070,0.14808562,3331.6,3331.1,3.00197]
[1736953118870,0.14808562,3331.6,3331.2,0.238]
[1736953119065,0.58354617,3331.6,3331.2,0.238]
[1736953119275,0.14808562,3331.6,3331.2,0.238]
[1736953120448,0.14808562,3331.6,3331.3,3.00182]
[1736953120648,0.14808562,3331.6,3331.2,0.238]
[1736953121399,0.14808562,3331.6,3331.2,3.23991]
[1736953121882,0.14808562,3331.6,3331.2,0.238]
[1736953122073,0.44688129,3331.6,3331.2,0.238]
[1736953122483,0.14808562,3331.6,3331.2,3.23989]
[1736953123249,0.14808562,3331.6,3331.2,0.238]
[1736953123852,0.14808562,3331.6,3331.4,3.00169]
[1736953124181,0.14808562,3331.6,3331.4,3.00171]
[1736953124519,0.14808562,3331.6,3331.5,3.00165]
[1736953125065,0.14808562,3331.6,3331.5,3.82625]
[1736953125561,0.14808562,3331.6,3331.5,4.09902681]
[1736953126194,0.14808562,3331.6,3331.5,0.51077681]
[1736953126396,0.14808562,3331.6,3331.5,3.51242681]
[1736953127619,5.62e-06,3331.6,3331.5,4.33702681]
[1736953128899,6.84135117,3333.4,3331.5,4.33702681]
[1736953128900,3.00478,3333.6,3331.8,0.55]
[1736953129074,0.76596983,3333.6,3332.1,3.00111]
[1736953129270,0.76596983,3333.6,3332.0,9.6946]
[1736953129271,2.99999,3333.4,3332.2,0.02999712]
[1736953129499,0.76596983,3333.6,3332.0,9.6946]
[1736953129699,0.8036,3333.3,3332.1,0.61430696]
[1736953129905,3.00021,3333.1,3332.2,0.238]
[1736953130128,0.8036,3333.3,3331.9,2.164]
[1736953130129,0.8093,3332.8,3331.9,2.164]
[1736953130431,0.8093,3332.8,3332.3,0.238]
[1736953130588,3.00058,3332.7,3332.4,0.238]
[1736953131107,0.8093,3332.8,3332.4,0.238]
[1736953131294,3.8098,3332.8,3332.4,0.238]
[1736953131627,0.38098,3332.7,3332.4,0.238]
[1736953131993,0.8093,3332.8,3332.4,0.238]
[1736953132703,3.00012,3333.2,3332.4,0.238]
[1736953132909,3.80949,3333.2,3332.4,0.238]
[1736953133215,0.8093,3333.2,3332.4,0.238]
[1736953133398,0.8093,3333.2,3332.4,3.23875]
[1736953133596,0.8093,3333.2,3332.5,3.0007]
[1736953134203,0.8093,3333.2,3332.4,0.238]
[1736953134404,1.190224,3333.2,3332.4,0.238]
[1736953134692,1.190224,3333.2,3332.6,0.27277681]
[1736953135007,0.8093,3333.2,3332.6,0.27277681]
[1736953135205,3.00021,3333.1,3332.6,0.27277681]
[1736953135424,3.00032,3333.0,3332.4,0.238]
[1736953136005,3.00032,3333.0,3332.0,3.27390681]
[1736953136006,2.95032,3333.0,3332.0,3.27390681]
[1736953136330,0.8093,3333.2,3332.0,0.27277681]
[1736953136492,3.0,3333.3,3332.1,0.27277681]
[1736953136493,3.00068,3332.6,3332.1,0.27277681]
[1736953136698,0.8093,3332.5,3332.2,0.238]
[1736953136895,0.8093,3332.5,3332.3,0.238]
[1736953137112,1.19023,3333.1,3332.3,0.238]
[1736953137321,3.8093,3333.1,3332.3,0.238]
[1736953137647,3.80996,3332.6,3332.3,0.238]
[1736953137829,3.00084,3332.4,3331.8,0.27277681]
[1736953138036,3.00084,3332.4,3331.9,0.238]
[1736953138244,3.00095,3332.3,3331.9,0.238]
[1736953138429,0.8093,3332.6,3331.9,0.238]
[1736953138632,3.00082,3332.5,3331.9,0.238]
[1736953138805,0.8093,3332.4,3332.0,0.238]
[1736953139006,3.00097,3332.3,3332.0,0.238]
[1736953139410,0.8093,3332.4,3332.0,0.238]
[1736953139611,3.81014,3332.4,3332.0,0.238]
[1736953139820,4.191154,3332.4,3332.0,0.238]
[1736953140232,3.00099,3332.3,3332.0,0.238]
[1736953140437,1.190314,3332.4,3332.0,0.238]
[1736953140650,3.00111,3332.1,3331.5,0.27277681]
[1736953140851,3.00102,3332.2,3332.1,0.238]
[1736953141147,0.8093,3332.4,3332.1,0.238]
[1736953141908,3.00102,3332.2,3332.1,0.238]
[1736953142120,0.8093,3332.8,3332.1,0.238]
[1736953142952,0.8093,3332.8,3332.1,0.188]
[1736953143250,0.8093,3332.8,3330.6,13.93175043]
[1736953143251,3.00057,3332.7,3332.2,0.27277681]
[1736953143450,3.00093,3332.3,3332.2,0.27277681]
[1736953144213,3.00122,3332.0,3331.7,0.238]
[1736953144791,0.8271,3331.9,3331.7,0.238]
[1736953145608,0.8271,3332.2,3331.7,0.238]
[1736953146112,0.8271,3332.2,3331.7,0.188]
[1736953146466,3.82754,3332.9,3331.8,0.7614]
[1736953146881,3.00059,3332.7,3331.8,4.29398522]
[1736953147080,4.210254,3332.9,3331.8,4.29398522]
[1736953147326,0.8271,3332.9,3332.2,3.53258522]
[1736953147486,2.99997,3333.4,3332.2,3.53258522]
[1736953147685,0.8271,3333.3,3332.2,3.53258522]
[1736953147892,3.82713,3333.3,3332.3,0.27277681]
[1736953148084,0.8271,3333.3,3332.3,0.27277681]
[1736953148780,0.8271,3333.3,3332.3,0.22277681]
[1736953149124,0.8271,3333.3,3332.2,6.53359522]
[1736953149827,0.8271,3333.3,3332.2,3.53258522]
[1736953150129,1.209804,3333.3,3332.2,3.53258522]
[1736953150331,0.8271,3333.3,3332.2,6.53359522]
[1736953150628,0.8271,3333.3,3332.2,3.53258522]
[1736953150988,3.00022,3333.1,3331.9,3.53258522]
[1736953151309,3.0,3333.2,3332.0,0.59966029]
[1736953151488,0.8271,3333.3,3332.1,6.53363522]
[1736953152027,1.209795,3333.3,3332.2,0.238]
[1736953152196,0.8271,3333.3,3332.2,0.238]
[1736953152584,0.8271,3333.3,3332.0,3.63078459]
[1736953152783,0.8271,3333.3,3332.3,0.7614]
[1736953153000,0.8271,3333.3,3332.3,3.7623]
[1736953153221,0.8271,3333.3,3332.4,3.00082]
[1736953154040,0.8271,3333.3,3332.5,3.00073]
[1736953154325,0.005,3333.6,3333.0,0.7614]
[1736953154481,0.005,3333.6,3333.5,3.53258522]
[1736953154686,0.005,3333.6,3333.5,3.77058522]
[1736953155320,1e-05,3333.6,3333.5,7.53183522]
[1736953155519,0.00365715,3333.8,3333.5,4.53198522]
[1736953155824,1.02791816,3334.3,3334.2,3.76062]
[1736953156023,0.005,3334.9,3334.5,2.99887]
[1736953156225,0.005,3334.9,3334.8,2.99868]
[1736953156424,0.003639,3335.6,3335.5,4.29398522]
[1736953156622,0.003639,3335.6,3335.5,7.29203522]
[1736953157125,0.003639,3335.6,3335.5,3.75945]
[1736953157326,0.003639,3335.6,3335.5,0.7614]
[1736953157500,0.003639,3335.6,3335.5,0.238]
[1736953157824,0.003639,3335.6,3335.4,0.238]
[1736953158031,3.82515,3335.5,3335.4,0.238]
[1736953158203,4.5078069,3335.5,3335.4,0.238]
[1736953158522,1.5097569,3335.5,3335.4,0.238]
[1736953158730,4.5078069,3335.5,3335.4,0.238]
[1736953158918,7.5078069,3335.5,3335.4,0.238]
[1736953159091,3.0,3335.4,3334.3,0.60036779]
[1736953159289,3.0,3335.2,3334.4,0.238]
[1736953159594,3.0,3334.5,3334.4,0.238]
[1736953160190,0.8271,3334.3,3334.1,0.238]
[1736953160422,5.99922,3334.2,3334.1,0.238]
[1736953160994,0.8271,3334.8,3333.6,0.02999483]
[1736953161292,2.99789,3335.7,3333.9,3.83555861]
[1736953161293,3.003639,3335.6,3333.9,3.83555861]
[1736953161487,3.0,3335.2,3333.9,3.83555861]
[1736953161695,3.14836212,3335.5,3333.9,3.83555861]
[1736953161894,3.0,3335.2,3334.0,0.7614]
[1736953162088,5.99822,3335.4,3334.0,0.7614]
[1736953162306,3.0,3335.5,3334.0,0.7614]
[1736953162488,0.6001649,3335.4,3334.0,0.7614]
[1736953162715,0.003639,3335.6,3334.0,0.79138533]
[1736953163140,0.003639,3335.6,3334.4,3.83555861]
[1736953164023,0.830739,3335.6,3334.4,3.83555861]
[1736953164603,0.830739,3335.6,3334.3,0.02997966]
[1736953164923,0.830739,3335.6,3334.1,0.02997973]
[1736953164924,2.99807,3335.5,3334.1,0.02997973]
[1736953165166,0.003639,3335.6,3334.2,0.7614]
[1736953165465,0.003639,3335.6,3334.7,0.7614]
[1736953165669,0.003639,3335.6,3334.8,3.26563588]
[1736953165820,0.003639,3335.6,3334.9,0.7614]
[1736953166020,0.003639,3335.6,3335.0,0.0299728]
[1736953166957,0.003639,3335.6,3335.0,3.86553141]
[1736953167162,0.003639,3335.6,3335.1,0.7614]
[1736953167360,0.003639,3335.6,3335.5,0.7614]
[1736953168248,0.003639,3335.6,3335.5,0.9984]
[1736953168763,0.003639,3335.6,3335.5,0.237]
[1736953170040,0.003639,3335.6,3334.8,0.7614]
[1736953170241,3.001599,3335.6,3334.9,0.237]
[1736953170552,0.003639,3335.6,3334.9,0.237]
[1736953170752,3.001619,3335.6,3334.9,0.237]
[1736953170958,0.003639,3335.6,3334.9,0.237]
[1736953172032,3.001619,3335.6,3334.9,0.237]
[1736953172272,3.3017809,3335.6,3334.9,0.237]
[1736953172435,0.3038009,3335.6,3334.5,0.7614]
[1736953172634,0.8271,3335.3,3334.6,0.237]
[1736953173160,0.003639,3335.6,3335.0,0.7614]
[1736953173465,0.003639,3335.6,3335.0,0.79137358]
[1736953173632,0.003639,3335.6,3335.0,0.7614]
[1736953174066,0.003639,3335.6,3335.1,0.237]
[1736953174230,0.3865039,3335.6,3335.1,0.237]
[1736953174432,0.003639,3335.6,3335.1,0.237]
[1736953175246,0.003639,3335.6,3334.8,0.7614]
[1736953175750,0.003639,3335.6,3334.9,1.0041]
[1736953176153,0.003639,3335.6,3334.9,1.03407825]
[1736953176348,0.003639,3335.6,3334.9,1.0041]
[1736953177672,0.003639,3335.6,3335.0,0.8016]
[1736953178177,0.003639,3335.6,3335.1,0.237]
[1736953178566,0.003639,3335.6,3335.2,0.237]
[1736953179475,0.003639,3335.6,3335.3,0.02997735]
[1736953179662,0.003639,3335.6,3335.2,0.237]
[1736953179863,0.003639,3335.6,3335.2,0.26697221]
[1736953180043,0.003639,3335.6,3335.2,0.237]
[1736953181356,0.003639,3335.6,3335.3,0.83157539]
[1736953181950,0.003639,3335.6,3335.3,0.8016]
[1736953182176,0.003639,3335.6,3335.3,1.39790341]
[1736953182775,0.003639,3335.6,3335.3,0.59630341]
[1736953182987,0.003639,3335.6,3335.4,0.237]
[1736953183302,0.003639,3335.6,3335.2,0.27115676]
[1736953183303,3.0,3335.3,3335.2,0.27115676]
[1736953183519,0.7671,3335.3,3334.5,1.47253376]
[1736953183664,0.7671,3335.3,3334.6,0.237]
[1736953184099,0.7671,3335.3,3334.7,0.02998344]
[1736953184268,0.7671,3335.3,3334.6,0.237]
[1736953184464,0.003639,3335.6,3334.7,0.8016]
[1736953184706,0.003639,3335.6,3334.8,0.237]
[1736953184867,0.003639,3335.6,3334.8,0.50815676]
[1736953186207,2.99818,3335.4,3334.9,0.237]
[1736953186502,2.99818,3335.4,3333.9,3.83555861]
[1736953186503,3.76516,3335.5,3335.0,0.237]
[1736953186729,0.7671,3335.5,3335.1,0.237]
[1736953186871,0.7671,3335.5,3334.3,1.39693564]
[1736953187074,3.76569,3334.9,3334.8,0.27267097]
[1736953187386,0.7671,3334.9,3334.8,0.27267097]
[1736953187779,3.76569,3334.9,3334.8,0.27267097]
[1736953188206,0.7671,3335.4,3334.8,0.27267097]
[1736953188427,3.001609,3335.6,3334.6,0.8016]
[1736953188709,0.003639,3335.6,3334.6,0.8016]
[1736953189607,3.001609,3335.6,3334.7,0.27267097]
[1736953189830,0.003639,3335.6,3334.7,0.27267097]
[1736953190441,3.001619,3335.6,3334.7,0.27267097]
[1736953190613,2.99813,3335.5,3334.7,0.27267097]
[1736953190818,3.3784999,3335.6,3334.8,0.27267097]
[1736953191013,0.003639,3335.6,3334.8,0.27267097]
[1736953191726,3.001599,3335.6,3334.8,0.27267097]
[1736953192132,0.003639,3335.6,3334.9,0.27267097]
[1736953192440,5.9985,3335.0,3334.9,0.27267097]
[1736953192744,3.0,3335.0,3334.9,0.27267097]
[1736953193137,3.75555,3335.3,3334.9,0.27267097]
[1736953193341,3.75555,3335.3,3334.9,0.237]
[1736953193838,0.7573,3335.3,3334.9,0.237]
[1736953194038,2.9985,3335.0,3334.9,0.237]
[1736953194810,1.1332099,3335.3,3334.9,0.237]
[1736953195006,0.7573,3335.3,3334.9,0.237]
[1736953195211,2.99839,3335.2,3334.9,0.237]
[1736953195442,2.99839,3335.2,3335.0,0.237]
[1736953195750,3.0,3335.1,3335.0,0.237]
[1736953196243,3.0,3335.1,3334.3,0.27405376]
[1736953196743,2.99842,3335.1,3334.4,0.10518577]
[1736953196949,3.38899478,3335.1,3334.5,0.237]
[1736953197106,0.54251377,3335.1,3334.6,0.237]
[1736953197317,2.99895,3334.5,3334.4,0.13181423]
[1736953197521,2.99904,3334.4,3334.3,0.237]
[1736953197723,5.99904,3334.4,3334.3,0.237]
[1736953198333,3.0,3334.4,3334.3,0.237]
[1736953198516,3.75619,3334.6,3334.3,0.237]
[1736953198517,0.7573,3334.6,3334.3,0.237]
[1736953198719,2.99842,3335.1,3334.3,0.237]
[1736953198959,3.0,3335.0,3334.3,0.237]
[1736953199139,0.7573,3334.9,3334.3,0.237]
[1736953199345,2.99877,3334.7,3334.3,0.237]
[1736953199555,0.7573,3334.9,3334.3,0.237]
[1736953199755,5.99895,3334.5,3334.4,0.237]
[1736953199955,3.0,3334.5,3334.4,0.237]
[1736953200118,2.9845,3334.5,3334.4,0.237]
[1736953200659,0.7573,3335.2,3334.4,0.237]
[1736953201062,3.75563,3335.2,3334.4,0.237]
[1736953201237,2.99853,3335.0,3334.4,0.237]
[1736953201444,2.99857,3335.0,3334.5,0.237]
[1736953201755,2.99841,3335.1,3334.5,0.237]
[1736953201959,0.4131263,3335.0,3334.6,0.237]
[1736953202161,1.132853,3335.2,3334.6,0.237]
[1736953202162,1.28601269,3335.2,3334.6,0.237]
[1736953202366,0.15315969,3335.2,3334.6,0.237]
[1736953202567,0.15065801,3335.4,3334.7,0.02997932]
[1736953202862,0.760939,3335.6,3334.7,0.237]
[1736953203022,0.003639,3335.6,3334.8,0.7771]
[1736953203837,3.7573,3335.5,3334.8,0.7771]
[1736953204159,0.003639,3335.6,3334.9,0.237]
[1736953204364,0.003639,3335.6,3333.8,5.79867338]
[1736953204365,0.003639,3335.6,3335.0,1.0141]
[1736953204662,0.003639,3335.6,3335.1,0.237]
[1736953205672,0.003639,3335.6,3335.5,1.41063131]
[1736953206365,0.003639,3335.6,3335.5,1.44060442]
[1736953206845,0.003639,3335.6,3335.5,1.41063131]
[1736953207252,0.003639,3335.6,3335.5,0.8201]
[1736953207453,0.003639,3335.6,3335.5,1.0571]
[1736953207781,2.81371309,3336.6,3335.5,1.0571]
[1736953207987,3.00035207,3337.0,3335.5,1.0571]
[1736953208284,1.54313107,3336.9,3335.5,1.0571]
[1736953208452,0.7814,3336.9,3335.6,0.02996964]
[1736953208643,3.77821,3336.9,3335.5,1.0571]
[1736953208844,0.7814,3336.9,3335.6,0.02996956]
[1736953209476,0.14834393,3336.9,3335.7,0.8201]
[1736953209651,0.00363207,3337.0,3335.9,0.8201]
[1736953209853,0.00363207,3337.0,3336.1,0.8201]
[1736953210293,0.00363207,3337.0,3336.2,0.02996466]
[1736953210647,0.15382993,3337.0,3336.4,0.58696434]
[1736953210845,0.15382993,3337.0,3336.5,0.8293]
[1736953210846,0.00363207,3337.0,3336.5,0.8293]
[1736953211078,0.00363207,3337.0,3336.6,0.26696145]
[1736953211254,0.00363207,3337.0,3336.7,0.8293]
[1736953211461,0.00363207,3337.0,3336.9,0.8293]
[1736953213167,0.14900017,3337.5,3337.1,1.1092542]
[1736953213368,0.14900017,3337.5,3337.2,0.8293]
[1736953213696,0.00365271,3337.9,3337.2,1.0663]
[1736953213869,0.15795548,3337.9,3337.2,1.0663]
[1736953214195,0.00365271,3337.9,3337.3,0.237]
[1736953214493,2.99653,3337.2,3336.0,0.8293]
[1736953214698,0.1493068,3337.2,3336.0,0.8293]
[1736953214859,3.0,3336.8,3336.0,0.8293]
[1736953215194,3.0,3336.6,3336.0,0.8293]
[1736953215397,2.99707,3336.6,3336.3,0.27145271]
[1736953215710,3.0,3336.9,3336.3,0.27145271]
[1736953216011,5.99724,3336.4,3336.3,2.71e-06]
[1736953216297,8.47895345,3336.4,3336.3,2.71e-06]
[1736953216483,5.99724,3336.4,3336.3,2.71e-06]
[1736953216799,3.0,3336.6,3335.7,0.02997435]
[1736953216999,0.61499219,3337.7,3335.7,0.02997435]
[1736953217000,3.98486541,3337.2,3335.7,0.02997225]
[1736953217156,2.99661,3337.1,3335.7,0.02997225]
[1736953217357,5.99661,3337.1,3335.6,1.09626758]
[1736953217563,3.0,3336.5,3335.7,0.60107763]
[1736953217762,2.99717,3336.5,3335.6,1.0663]
[1736953217958,3.0,3336.7,3335.7,0.02997083]
[1736953218165,3.0,3337.1,3335.8,0.237]
[1736953218661,3.0,3336.9,3335.8,0.237]
[1736953218884,4.08386032,3337.2,3335.8,0.237]
[1736953219064,3.14807352,3337.2,3336.0,0.8293]
[1736953219389,2.9967,3337.0,3336.0,0.8293]
[1736953219586,3.0,3336.9,3336.1,0.237]
[1736953219850,2.99684,3336.9,3336.1,0.237]
[1736953220050,3.0,3336.2,3336.1,0.237]
[1736953220268,3.0,3337.0,3335.5,0.8033]
[1736953220574,3.0,3336.6,3336.1,0.237]
[1736953220777,2.99727,3336.4,3336.1,0.237]
[1736953221079,2.99725,3336.4,3336.2,0.237]
[1736953221218,0.7659,3336.6,3336.2,0.237]
[1736953221851,2.99733,3336.3,3336.2,0.237]
[1736953222149,5.99769,3335.9,3335.8,0.237]
[1736953222477,5.99778,3335.8,3335.7,0.237]
[1736953223218,2.99761,3336.0,3335.7,0.237]
[1736953223433,0.82631948,3336.3,3335.7,0.237]
[1736953223649,2.99751,3336.1,3335.7,0.237]
[1736953224163,0.14818316,3337.3,3335.8,0.8033]
[1736953224334,2.99687,3336.9,3335.8,0.8033]
[1736953224668,2.99662,3337.1,3335.9,0.237]
[1736953224827,0.14818316,3337.3,3335.9,0.237]
[1736953225026,3.83555861,3337.1,3335.9,0.237]
[1736953225229,3.0,3337.0,3335.9,0.237]
[1736953225451,0.68355586,3336.9,3335.9,0.237]
[1736953225759,2.99689,3336.8,3335.9,0.237]
[1736953226150,0.68355586,3336.9,3335.9,0.237]
[1736953226528,0.7659,3337.5,3336.0,0.02996878]
[1736953226759,3.0,3337.0,3335.9,0.237]
[1736953226964,2.99643,3337.3,3335.9,0.237]
[1736953227312,3.7659,3337.5,3335.9,0.237]
[1736953227313,0.7659,3337.5,3335.9,0.237]
[1736953227569,3.14944777,3337.5,3336.0,0.83326521]
[1736953227862,0.15318777,3337.5,3336.0,0.83326521]
[1736953228069,2.99598,3337.8,3336.0,0.83326521]
[1736953228277,0.1511903,3337.9,3336.0,0.83326521]
[1736953228562,0.00365271,3337.9,3337.1,0.8033]
[1736953228763,0.00365271,3337.9,3337.2,0.237]
[1736953229645,0.00365271,3337.9,3337.1,0.8033]
[1736953229857,3.00365271,3337.9,3337.2,0.237]
[1736953230066,3.00365271,3337.9,3337.3,0.237]
[1736953230658,0.60360598,3337.9,3337.1,0.8033]
[1736953230894,0.60360598,3337.9,3337.0,0.6101298]
[1736953230895,3.0,3337.3,3337.0,0.6101298]
[1736953231126,3.0,3337.6,3337.0,0.6101298]
[1736953231383,0.00365271,3337.9,3337.1,0.237]
[1736953231539,0.00365271,3337.9,3337.2,0.81125583]
[1736953232151,0.00365271,3337.9,3337.6,0.60621335]
[1736953232366,0.00365271,3337.9,3337.7,0.26695383]
[1736953232552,0.00365271,3337.9,3337.8,0.7813]
[1736953232806,0.00365271,3337.9,3337.8,1.0183]
[1736953234766,3.07308151,3338.3,3337.8,1.0183]
[1736953235170,7.15946566,3338.3,3337.8,0.237]
[1736953235449,0.07308151,3338.3,3337.8,0.237]
[1736953235650,0.07308151,3338.3,3337.9,0.8125]
[1736953237391,4.30356313,3338.4,3338.2,0.8125]
[1736953237561,4.20356313,3338.4,3338.3,0.237]
[1736953238003,3.55006391,3338.4,3338.3,1.0495]
[1736953238179,0.00365126,3339.2,3338.7,0.8125]
[1736953238510,0.03021834,3340.0,3338.9,0.8125]
[1736953238737,0.03021834,3340.0,3339.0,0.8125]
[1736953238889,0.03021834,3340.0,3339.0,0.26693601]
[1736953239214,0.03021834,3340.0,3339.4,0.8125]
[1736953239396,0.03021834,3340.0,3339.5,0.84243154]
[1736953240320,0.09303862,3340.8,3339.8,0.6305]
[1736953240519,0.09303862,3340.8,3339.9,0.66042547]
[1736953240707,0.09303862,3340.8,3340.0,0.25]
[1736953240895,0.09303862,3340.8,3340.2,0.3805]
[1736953241099,0.09303862,3340.8,3340.4,0.3805]
[1736953241295,0.09303862,3340.8,3340.7,0.25]
[1736953241524,0.00364905,3341.2,3340.8,0.8031]
[1736953241824,0.00364905,3341.2,3340.8,1.08302148]
[1736953241985,0.00364905,3341.2,3340.9,0.8031]
[1736953242187,0.49290303,3342.4,3341.3,0.8125]
[1736953242487,0.49290303,3342.4,3341.5,0.8125]
[1736953242615,0.49290303,3342.4,3341.6,3.00141344]
[1736953242800,0.49290303,3342.4,3341.6,2.9715]
[1736953243153,0.49290303,3342.4,3341.7,0.237]
[1736953243654,0.49290303,3342.4,3341.8,0.237]
[1736953244143,0.49290303,3342.4,3342.0,0.8125]
[1736953244296,0.0008,3344.6,3342.8,0.3453]
[1736953244493,2.98867,3346.0,3343.8,0.25]
[1736953244713,2.98784,3346.9,3343.9,0.02988789]
[1736953244915,2.98875,3345.9,3344.0,0.25]
[1736953245127,0.59968881,3346.1,3344.0,0.25]
[1736953245128,0.59968881,3346.1,3344.1,35.0]
[1736953245333,4.8396,3346.5,3344.3,2.99014]
[1736953245629,4.8396,3346.5,3345.5,2.98907]
[1736953245803,4.8396,3346.5,3345.8,2.9888]
[1736953246004,4.8396,3346.5,3346.0,0.8125]
[1736953246246,4.8396,3346.5,3345.9,35.0]
[1736953246247,3.83615781,3346.5,3346.3,0.3189]
[1736953246526,2.94515599,3346.5,3346.4,2.25]
[1736953246733,0.4391253,3346.5,3346.4,0.25]
[1736953246933,0.016,3348.0,3346.6,0.25]
[1736953247132,0.016,3348.0,3347.1,0.25]
[1736953247338,0.016,3348.0,3347.0,0.15245508]
[1736953247339,0.016,3348.0,3347.4,0.25]
[1736953247493,0.016,3348.0,3347.5,0.02985864]
[1736953247952,0.016,3348.0,3347.6,0.249]
[1736953248293,0.016,3348.0,3347.7,0.249]
[1736953248819,0.016,3348.0,3347.4,2.156]
[1736953249020,0.016,3348.0,3347.5,0.249]
[1736953249331,0.016,3348.0,3347.4,1.0188894]
[1736953249733,0.016,3348.0,3345.9,2.0]
[1736953249908,0.60640718,3347.5,3346.5,2.156]
[1736953250144,3.59375718,3347.5,3346.6,0.249]
[1736953250468,0.35937572,3347.4,3346.7,0.249]
[1736953250673,3.0,3347.5,3346.8,0.249]
[1736953250891,2.98735,3347.5,3346.9,0.249]
[1736953251095,0.016,3348.0,3347.0,0.02987196]
[1736953251315,0.016,3348.0,3347.1,0.249]
[1736953251498,0.016,3348.0,3347.2,0.02986218]
[1736953251787,0.016,3348.0,3346.7,0.02986257]
[1736953252099,3.0,3347.7,3347.3,0.249]
[1736953252299,3.98468077,3347.7,3346.5,1e-08]
[1736953252578,3.0,3346.7,3346.6,0.249]
[1736953252929,3.83080766,3347.3,3346.6,0.249]
[1736953253165,3.83080766,3347.6,3346.6,0.249]
[1736953253699,5.98732,3347.5,3346.5,1e-08]
[1736953253899,3.0,3347.0,3346.6,0.249]
[1736953254038,3.0,3347.0,3346.7,0.249]
[1736953254233,3.0,3347.0,3346.5,1e-08]
[1736953254471,5.98776,3347.0,3346.5,1e-08]
[1736953254688,0.55,3346.9,3346.5,1e-08]
[1736953254944,0.55,3346.7,3346.6,0.249]
[1736953255183,3.0,3347.0,3346.6,0.249]
[1736953255693,5.98776,3347.0,3346.7,0.249]
[1736953256004,3.0,3347.0,3346.8,0.249]
[1736953256477,0.55,3346.9,3346.8,0.249]
[1736953256642,3.83080766,3346.6,3344.9,2.155]
[1736953256847,0.55,3346.4,3345.0,0.249]
[1736953257057,3.83080766,3346.1,3344.9,1.14649943]
[1736953257265,3.0,3346.0,3345.0,0.249]
[1736953257474,3.0,3346.0,3345.1,0.249]
[1736953257703,3.83080766,3346.6,3345.2,0.2639698]
[1736953257888,2.98829,3346.4,3345.2,0.249]
[1736953258111,0.61283952,3345.3,3344.4,0.01496172]
[1736953258310,0.61283952,3345.3,3344.6,0.25]
[1736953258492,3.0,3346.5,3344.7,0.01496553]
[1736953258911,3.0,3346.5,3344.5,0.249]
[1736953258912,0.55,3346.4,3344.5,0.249]
[1736953259119,0.58627497,3344.8,3344.6,0.01496689]
[1736953259292,0.48455248,3347.0,3344.6,0.01496689]
[1736953259293,3.83080766,3346.8,3344.6,0.01496689]
[1736953259494,3.0,3346.6,3344.6,0.01496689]
[1736953259918,0.55,3346.7,3344.6,0.26496689]
[1736953260101,0.55,3346.7,3344.6,0.01496689]
[1736953260302,3.76798,3347.2,3344.6,0.01496689]
[1736953260303,0.60663557,3344.9,3344.8,5.23971]
[1736953260504,4.61120766,3347.2,3345.0,0.25]
[1736953260716,0.6037625,3345.4,3345.2,2.0]
[1736953261030,3.83080766,3347.2,3345.3,35.0]
[1736953261328,0.81194025,3347.6,3345.3,35.0]
[1736953261329,0.77459772,3347.6,3345.5,0.25]
[1736953261546,2.84691048,3348.6,3346.2,0.25]
[1736953261758,5.83324048,3348.6,3346.3,0.265]
[1736953261914,0.60124857,3346.5,3346.4,35.265]
[1736953262250,0.60124857,3346.5,3346.4,35.0]
[1736953262415,0.60124857,3346.5,3344.9,2.0]
[1736953262595,0.60124857,3346.5,3345.0,0.27994924]
[1736953262797,3.83080766,3347.7,3345.7,2.0]
[1736953262998,0.016,3348.0,3346.3,2.0]
[1736953263260,0.016,3348.0,3346.4,0.265]
[1736953263919,0.016,3348.0,3346.5,35.0]
[1736953264817,0.16758288,3348.0,3346.6,0.265]
[1736953265212,3.16758288,3348.0,3346.6,0.265]
[1736953265352,3.0,3347.6,3345.3,2.0]
[1736953265550,0.60011132,3346.7,3345.3,2.0]
[1736953265737,0.60011132,3346.7,3344.8,2.0]
[1736953265948,0.60011132,3346.7,3345.4,0.265]
[1736953266121,3.83080766,3347.2,3345.5,0.01494604]
[1736953266329,0.55,3347.0,3345.6,0.265]
[1736953266516,0.60409007,3345.7,3345.6,0.265]
[1736953267368,0.60409007,3345.7,3345.2,0.265]
[1736953267734,0.60409007,3345.7,3345.3,0.265]
[1736953268256,0.60409007,3345.7,3345.2,0.265]
[1736953268576,0.60409007,3345.7,3345.3,0.265]
[1736953268778,3.0,3347.1,3345.4,0.265]
[1736953268992,0.15046915,3346.7,3345.4,0.265]
[1736953269132,0.7619,3346.6,3344.7,0.75351916]
[1736953269469,0.60133823,3345.5,3344.8,0.265]